fUSD/lending_fUSD_20250519
["ID","MTS","AMOUNT","RATE_DAILY","PERIOD"]
[361613337,1747640738374,-795.84,0.00013698,2]
[361613338,1747640738398,-420.0,0.00013698,2]
[361613339,1747640738423,-14486.61,0.00013698,2]
[361613340,1747640738449,-402.5516324,0.00013698,2]
[361613341,1747640738475,-420.0,0.00013698,2]
[361613342,1747640738501,-420.0,0.00013698,2]
[361613343,1747640738528,-1183.74,0.00013698,2]
[361613344,1747640738553,-420.0,0.00013698,2]
[361613345,1747640738577,-523.3,0.00013698,2]
[361613346,1747640738602,-1242.22,0.00013698,2]
[361613347,1747640738626,-606.92,0.00013698,2]
[361613348,1747640738650,-420.0,0.00013698,2]
[361613349,1747640738674,-420.26,0.00013698,2]
[361613350,1747640738699,-574.1,0.00013698,2]
[361613351,1747640738722,-420.0,0.00013698,2]
[361613352,1747640738745,-420.0,0.00013698,2]
[361613353,1747640738769,-420.0,0.00013698,2]
[361613354,1747640738794,-717.87,0.00013698,2]
[361613355,1747640738818,-10612.53,0.00013698,2]
[361613356,1747640738842,-516.08,0.00013698,2]
[361613357,1747640738867,-489.16263838,0.00013698,2]
[361613358,1747640738891,-1894.61,0.00013698,2]
[361613359,1747640738914,-420.0,0.00013698,2]
[361613360,1747640738939,-928.85,0.00013698,2]
[361613361,1747640738963,-387.38,0.00013698,2]
[361613362,1747640738989,-420.0,0.00013698,2]
[361613363,1747640739013,-392.24378495,0.00013698,2]
[361613364,1747640739039,-851.2,0.00013698,2]
[361613365,1747640739064,-420.0,0.00013698,2]
[361613366,1747640739089,-420.0,0.00013698,2]
[361613367,1747640739114,-420.0,0.00013698,2]
[361613368,1747640739139,-439.11526405,0.00013698,2]
[361613369,1747640739165,-20286.17,0.00013698,2]
[361613370,1747640739190,-420.0,0.00013698,2]
[361613371,1747640739215,-804.49,0.00013698,2]
[361613372,1747640739241,-420.0,0.00013698,2]
[361613373,1747640739267,-471.51,0.00013698,2]
[361613374,1747640739293,-727.66,0.00013698,2]
[361613375,1747640739319,-678.98,0.00013698,2]
[361613376,1747640739344,-546.58406269,0.00013698,2]
[361613377,1747640739371,-657.12,0.00013698,2]
[361613378,1747640739396,-3104.95,0.00013698,2]
[361613379,1747640739422,-845.95,0.00013698,2]
[361613380,1747640739449,-400.0,0.00013698,2]
[361613381,1747640739474,-400.0,0.00013698,2]
[361613382,1747640739499,-420.0,0.00013698,2]
[361613383,1747640739528,-3886.3631969,0.00013698,2]
[361613384,1747640768342,2180.75054676,7.945e-05,2]
[361613385,1747640768366,2268.79397624,7.945e-05,2]
[361613386,1747640800477,169.27,0.00010169,2]
[361613387,1747640810093,-169.27,0.00011864,2]
[361613388,1747640810116,-53.60024326,0.00012723,2]
[361613389,1747640843085,-96.39975674,0.00012723,2]
[361613390,1747640843109,-164.94,0.00012768,2]
[361613391,1747640843133,-207.0,0.00012861,2]
[361613392,1747640843156,-250.0,0.00013242,2]
[361613393,1747640843180,-200.0,0.00013242,2]
[361613394,1747640843203,-238.225835,0.00013447,2]
[361613395,1747640843228,-180.30443887,0.00013515,2]
[361613396,1747640859593,-20000.0,0.00015,7]
[361613397,1747640896982,167.99712566,7.5e-07,2]
[361613399,1747640993750,-848.05,0.00012305,2]
[361613400,1747640993775,-468.01,0.00012656,2]
[361613401,1747640993800,-468.01,0.0001266,2]
[361613402,1747640993824,-468.01,0.00012663,2]
[361613403,1747640993849,-1000.0,0.00012664,2]
[361613404,1747640993874,-468.01,0.00012666,2]
[361613405,1747640993898,-23900.0,0.00012669,2]
[361613406,1747640993923,-468.01,0.0001267,2]
[361613407,1747640993947,-468.01,0.00012673,2]
[361613408,1747640993970,-468.01,0.00012676,2]
[361613409,1747640993998,-468.01,0.0001268,2]
[361613410,1747640994022,-468.01,0.00012683,2]
[361613411,1747640994046,-39.86,0.00012686,2]
[361613412,1747641020243,-407.85720342,0.0001257,2]
[361613413,1747641020268,-941.13465185,0.00012647,2]
[361613414,1747641020292,-428.15,0.00012686,2]
[361613415,1747641020317,-468.01,0.0001269,2]
[361613416,1747641020342,-468.01,0.00012693,2]
[361613417,1747641020367,-468.01,0.00012696,2]
[361613418,1747641020391,-468.01,0.000127,2]
[361613419,1747641020415,-468.01,0.00012703,2]
[361613420,1747641020439,-468.01,0.00012706,2]
[361613421,1747641020463,-468.01,0.0001271,2]
[361613422,1747641020487,-468.01,0.00012713,2]
[361613423,1747641020512,-468.01,0.00012716,2]
[361613424,1747641020541,-468.01,0.0001272,2]
[361613425,1747641028893,-450.0,0.00013,2]
[361613426,1747641028917,-450.0,0.00013,2]
[361613427,1747641028941,-450.0,0.00013,2]
[361613428,1747641028963,-450.0,0.00013,2]
[361613429,1747641028986,-450.0,0.00013,2]
[361613430,1747641030445,300.0,0.00012999,2]
[361613443,1747641037305,-200.32750356,0.00013497,2]
[361613444,1747641037330,-19.69556113,0.00013515,2]
[361613445,1747641037355,-250.0,0.00013537,2]
[361613447,1747641037380,-200.0,0.00013537,2]
[361613448,1747641037404,-169.27,0.00013559,2]
[361613449,1747641037428,-200.0,0.00013574,2]
[361613450,1747641037454,-1200.0,0.00013589,2]
[361613451,1747641037479,-300.0,0.00013589,2]
[361613452,1747641037504,-200.32750356,0.0001359,2]
[361613453,1747641037531,-1551.82261314,0.0001359,2]
[361613454,1747641037558,-150.0,0.00013597,2]
[361613455,1747641037582,-603.54089292,0.00013598,2]
[361613456,1747641037608,-162.16408176,0.00013598,2]
[361613457,1747641037633,-1542.78336577,0.00013598,2]
[361613458,1747641037657,-170.84960829,0.00013598,2]
[361613459,1747641037681,-407.5446,0.00013598,2]
[361613460,1747641037705,-317.7523,0.00013598,2]
[361613461,1747641037729,-610.2416,0.00013598,2]
[361613468,1747641038037,-500.0,0.00013598,2]
[361613469,1747641038063,-1000.0,0.00013598,2]
[361613470,1747641038087,-240.98,0.00013598,2]
[361613471,1747641038113,-2500.0,0.00013598,2]
[361613472,1747641038137,-239.5686,0.00013598,2]
[361613473,1747641038162,-5000.0,0.00013598,2]
[361613474,1747641038186,-3255.8899146,0.00013598,2]
[361613475,1747641038314,-148.54081902,0.00013598,2]
[361613476,1747641038326,-1676.98620172,0.00013598,2]
[361613477,1747641038484,-508.2,0.00013598,2]
[361613485,1747641039670,-4800.98824124,0.00013598,2]
[361613486,1747641039681,-25531.91962342,0.00013598,2]
[361613487,1747641039691,-1542.78336577,0.00013599,2]
[361613488,1747641039702,-1873.1825546,0.00013599,2]
[361613489,1747641039711,-157.00802146,0.00013599,2]
[361613490,1747641039721,-1542.78336577,0.00013599,2]
[361613491,1747641039731,-1018.0,0.000136,2]
[361613492,1747641039741,-1000.0,0.000136,2]
[361613493,1747641039751,-1000.0,0.000136,2]
[361613494,1747641039761,-1000.0,0.000136,2]
[361613495,1747641039771,-1000.0,0.000136,2]
[361613496,1747641039784,-472.8761908,0.00013622,2]
[361613497,1747641039794,-1551.82261305,0.00013624,2]
[361613498,1747641039803,-1873.1825546,0.00013632,2]
[361613499,1747641039813,-196.82105669,0.00013633,2]
[361613500,1747641039823,-157.00802141,0.00013649,2]
[361613501,1747641039833,-162.16408172,0.00013658,2]
[361613502,1747641039842,-1551.82261305,0.00013659,2]
[361613503,1747641039852,-1873.1825546,0.00013666,2]
[361613504,1747641039862,-856.403487,0.00013671,2]
[361613505,1747641039872,-500.0,0.00013673,2]
[361613506,1747641039882,-500.0,0.00013673,2]
[361613507,1747641039892,-500.0,0.00013673,2]
[361613508,1747641039902,-250.11557869,0.00013673,2]
[361613509,1747641039911,-515.62792819,0.00013673,2]
[361613510,1747641039921,-500.58352484,0.00013673,2]
[361613511,1747641039930,-500.0,0.00013673,2]
[361613512,1747641039940,-366.80320235,0.00013673,2]
[361613513,1747641039949,-500.0,0.00013673,2]
[361613514,1747641039958,-500.0,0.00013673,2]
[361613515,1747641039968,-500.0,0.00013673,2]
[361613516,1747641039977,-2000.0,0.0001368,2]
[361613517,1747641039986,-5805.3463403,0.00013688,2]
[361613518,1747641039996,-303.0345973,0.00013688,2]
[361613519,1747641040006,-432.497674,0.00013688,2]
[361613520,1747641040015,-500.0,0.00013688,2]
[361613521,1747641040025,-500.0,0.00013688,2]
[361613522,1747641040037,-500.0,0.00013688,2]
[361613523,1747641040047,-500.0,0.00013688,2]
[361613524,1747641040056,-500.0,0.00013688,2]
[361613525,1747641040065,-500.0,0.00013688,2]
[361613526,1747641040076,-500.0,0.00013688,2]
[361613527,1747641040085,-500.0,0.00013688,2]
[361613528,1747641040095,-500.0,0.00013688,2]
[361613529,1747641040105,-500.0,0.00013688,2]
[361613530,1747641040114,-500.0,0.00013688,2]
[361613531,1747641040124,-500.0,0.00013688,2]
[361613532,1747641040133,-500.0,0.00013688,2]
[361613533,1747641040143,-500.0,0.00013688,2]
[361613534,1747641040152,-500.0,0.00013688,2]
[361613535,1747641040161,-500.0,0.00013688,2]
[361613536,1747641040171,-500.0,0.00013688,2]
[361613537,1747641040180,-500.0,0.00013688,2]
[361613538,1747641040189,-500.0,0.00013688,2]
[361613539,1747641040198,-500.0,0.00013688,2]
[361613540,1747641040208,-500.0,0.00013688,2]
[361613541,1747641040217,-500.0,0.00013688,2]
[361613542,1747641040226,-500.0,0.00013688,2]
[361613543,1747641040237,-500.0,0.00013688,2]
[361613544,1747641040247,-500.0,0.00013688,2]
[361613545,1747641040256,-500.0,0.00013688,2]
[361613546,1747641040265,-500.0,0.00013688,2]
[361613547,1747641040275,-500.0,0.00013688,2]
[361613548,1747641040286,-500.0,0.00013688,2]
[361613549,1747641040296,-500.0,0.00013688,2]
[361613550,1747641040306,-500.0,0.00013688,2]
[361613551,1747641040315,-500.0,0.00013688,2]
[361613552,1747641040325,-500.0,0.00013688,2]
[361613553,1747641040335,-500.0,0.00013688,2]
[361613554,1747641040345,-500.0,0.00013688,2]
[361613555,1747641040355,-500.0,0.00013688,2]
[361613556,1747641040365,-500.0,0.00013688,2]
[361613557,1747641040374,-500.0,0.00013688,2]
[361613558,1747641040384,-500.0,0.00013688,2]
[361613559,1747641040393,-500.0,0.00013688,2]
[361613560,1747641040403,-500.0,0.00013688,2]
[361613561,1747641040412,-500.0,0.00013688,2]
[361613562,1747641040422,-500.0,0.00013688,2]
[361613563,1747641040431,-500.0,0.00013688,2]
[361613564,1747641040441,-640.32095844,0.00013688,2]
[361613565,1747641040450,-640.32095844,0.00013688,2]
[361613566,1747641040460,-640.32095844,0.00013688,2]
[361613567,1747641040469,-640.32095844,0.00013688,2]
[361613568,1747641040479,-640.32095844,0.00013688,2]
[361613569,1747641040488,-640.32095844,0.00013688,2]
[361613570,1747641040497,-640.32095844,0.00013688,2]
[361613571,1747641040506,-640.32095844,0.00013688,2]
[361613572,1747641040516,-640.32095844,0.00013688,2]
[361613573,1747641040525,-640.32095844,0.00013688,2]
[361613574,1747641040536,-640.32095844,0.00013688,2]
[361613575,1747641040548,-640.32095844,0.00013688,2]
[361613576,1747641040557,-640.32095844,0.00013688,2]
[361613577,1747641040567,-640.32095844,0.00013688,2]
[361613578,1747641040577,-640.32095844,0.00013688,2]
[361613579,1747641040586,-640.32095844,0.00013688,2]
[361613580,1747641040597,-640.32095844,0.00013688,2]
[361613581,1747641040607,-640.32095844,0.00013688,2]
[361613582,1747641040617,-640.32095844,0.00013688,2]
[361613583,1747641040627,-640.32095844,0.00013688,2]
[361613584,1747641040637,-640.32095844,0.00013688,2]
[361613585,1747641040646,-640.32095844,0.00013688,2]
[361613586,1747641040655,-640.32095844,0.00013688,2]
[361613587,1747641040664,-640.32095844,0.00013688,2]
[361613588,1747641040675,-640.32095844,0.00013688,2]
[361613589,1747641040684,-640.32095844,0.00013688,2]
[361613590,1747641040692,-640.32095844,0.00013688,2]
[361613591,1747641040702,-640.32095844,0.00013688,2]
[361613592,1747641040711,-640.32095844,0.00013688,2]
[361613593,1747641040720,-640.32095844,0.00013688,2]
[361613594,1747641040729,-640.32095844,0.00013688,2]
[361613595,1747641040738,-640.32095844,0.00013688,2]
[361613596,1747641040747,-628.6787592,0.00013688,2]
[361613597,1747641040757,-628.6787592,0.00013688,2]
[361613598,1747641040766,-628.6787592,0.00013688,2]
[361613599,1747641040775,-628.6787592,0.00013688,2]
[361613600,1747641040786,-628.6787592,0.00013688,2]
[361613601,1747641040795,-628.6787592,0.00013688,2]
[361613602,1747641040804,-628.6787592,0.00013688,2]
[361613603,1747641040814,-628.6787592,0.00013688,2]
[361613604,1747641040823,-628.6787592,0.00013688,2]
[361613605,1747641040832,-628.6787592,0.00013688,2]
[361613606,1747641040841,-628.6787592,0.00013688,2]
[361613607,1747641040850,-158.6,0.00013688,2]
[361613608,1747641040859,-175.98783153,0.00013689,2]
[361613609,1747641040869,-5666.4537922,0.00013689,2]
[361613610,1747641040878,-90321.9672902,0.00013689,2]
[361613611,1747641040887,-207.4,0.0001369,2]
[361613612,1747641040896,-1551.82261305,0.00013693,2]
[361613613,1747641040906,-1003.51598088,0.00013697,2]
[361613614,1747641040915,-164.32894291,0.00013697,2]
[361613615,1747641040925,-192.90218343,0.00013697,2]
[361613616,1747641040934,-170.95853202,0.00013697,2]
[361613617,1747641040944,-810.0,0.00013698,2]
[361613618,1747641040954,-420.0,0.00013698,2]
[361613619,1747641040963,-420.0,0.00013698,2]
[361613620,1747641040973,-650.58,0.00013698,2]
[361613621,1747641040982,-925.4,0.00013698,2]
[361613622,1747641040991,-420.0,0.00013698,2]
[361613623,1747641041001,-420.0,0.00013698,2]
[361613624,1747641041010,-420.0,0.00013698,2]
[361613625,1747641041019,-380.0,0.00013698,2]
[361613626,1747641041029,-420.0,0.00013698,2]
[361613627,1747641041038,-420.0,0.00013698,2]
[361613628,1747641041048,-420.0,0.00013698,2]
[361613629,1747641041057,-420.0,0.00013698,2]
[361613630,1747641041067,-420.0,0.00013698,2]
[361613631,1747641041079,-420.0,0.00013698,2]
[361613632,1747641041089,-1027.46,0.00013698,2]
[361613633,1747641041099,-196.46299033,0.00013698,2]
[361613634,1747641041108,-735.21,0.00013698,2]
[361613635,1747641041117,-448.29785865,0.00013698,2]
[361613636,1747641041126,-1210.33,0.00013698,2]
[361613637,1747641041136,-481.65,0.00013698,2]
[361613638,1747641041144,-289.22394018,0.00013698,2]
[361613639,1747641041154,-420.0,0.00013698,2]
[361613640,1747641041164,-1050.11,0.00013698,2]
[361613641,1747641041173,-420.0,0.00013698,2]
[361613642,1747641041182,-400.0,0.00013698,2]
[361613643,1747641041191,-420.0,0.00013698,2]
[361613644,1747641041200,-500.0,0.00013698,2]
[361613645,1747641041210,-1326.87,0.00013698,2]
[361613646,1747641041219,-565.3,0.00013698,2]
[361613647,1747641041228,-420.0,0.00013698,2]
[361613648,1747641041238,-400.0,0.00013698,2]
[361613649,1747641041247,-420.0,0.00013698,2]
[361613650,1747641041257,-193.23648156,0.00013698,2]
[361613651,1747641041266,-1046.25,0.00013698,2]
[361613652,1747641041275,-650.39,0.00013698,2]
[361613653,1747641041285,-420.0,0.00013698,2]
[361613654,1747641041295,-400.0,0.00013698,2]
[361613655,1747641041304,-1076.99,0.00013698,2]
[361613656,1747641041313,-420.0,0.00013698,2]
[361613657,1747641041323,-522.14,0.00013698,2]
[361613658,1747641041332,-852.82,0.00013698,2]
[361613659,1747641041342,-343.1152222,0.00013698,2]
[361613660,1747641041351,-420.0,0.00013698,2]
[361613661,1747641041360,-700.33,0.00013698,2]
[361613662,1747641041370,-420.0,0.00013698,2]
[361613663,1747641041379,-400.0,0.00013698,2]
[361613664,1747641041388,-420.0,0.00013698,2]
[361613665,1747641041398,-400.0,0.00013698,2]
[361613666,1747641041407,-420.0,0.00013698,2]
[361613667,1747641041417,-586.1,0.00013698,2]
[361613668,1747641041427,-431.28493272,0.00013698,2]
[361613669,1747641041436,-1099.2,0.00013698,2]
[361613670,1747641041445,-420.0,0.00013698,2]
[361613671,1747641041454,-768.79,0.00013698,2]
[361613672,1747641041464,-203.10984833,0.00013698,2]
[361613673,1747641041474,-420.0,0.00013698,2]
[361613674,1747641041483,-400.0,0.00013698,2]
[361613675,1747641041492,-420.0,0.00013698,2]
[361613676,1747641041502,-1096.46,0.00013698,2]
[361613677,1747641041511,-955.18,0.00013698,2]
[361613678,1747641041520,-380.0,0.00013698,2]
[361613679,1747641041530,-420.0,0.00013698,2]
[361613680,1747641041542,-420.0,0.00013698,2]
[361613681,1747641041552,-420.0,0.00013698,2]
[361613682,1747641041561,-498.17,0.00013698,2]
[361613683,1747641041571,-1110.2,0.00013698,2]
[361613684,1747641041581,-420.0,0.00013698,2]
[361613685,1747641041590,-1424.76,0.00013698,2]
[361613686,1747641041599,-397.3076851,0.00013698,2]
[361613687,1747641041609,-420.0,0.00013698,2]
[361613688,1747641041619,-1426.05,0.00013698,2]
[361613689,1747641041630,-716.4,0.00013698,2]
[361613690,1747641041639,-420.0,0.00013698,2]
[361613691,1747641041649,-400.0,0.00013698,2]
[361613692,1747641041658,-380.0,0.00013698,2]
[361613693,1747641041667,-400.34836304,0.00013698,2]
[361613694,1747641041675,-420.0,0.00013698,2]
[361613695,1747641041684,-449.85,0.00013698,2]
[361613696,1747641041693,-420.0,0.00013698,2]
[361613697,1747641041703,-420.0,0.00013698,2]
[361613698,1747641041712,-420.0,0.00013698,2]
[361613699,1747641041722,-725.64,0.00013698,2]
[361613700,1747641041732,-540.33,0.00013698,2]
[361613701,1747641041742,-420.0,0.00013698,2]
[361613702,1747641041751,-764.83,0.00013698,2]
[361613703,1747641041761,-402.64050371,0.00013698,2]
[361613704,1747641041770,-473.64,0.00013698,2]
[361613705,1747641041780,-2157.78,0.00013698,2]
[361613706,1747641041790,-420.0,0.00013698,2]
[361613707,1747641041799,-420.0,0.00013698,2]
[361613708,1747641041808,-940.2,0.00013698,2]
[361613709,1747641041817,-591.71,0.00013698,2]
[361613710,1747641041827,-420.0,0.00013698,2]
[361613711,1747641041836,-531.3,0.00013698,2]
[361613712,1747641041845,-287.00498643,0.00013698,2]
[361613713,1747641041854,-420.0,0.00013698,2]
[361613714,1747641041863,-420.0,0.00013698,2]
[361613715,1747641041873,-420.0,0.00013698,2]
[361613716,1747641041882,-818.67,0.00013698,2]
[361613717,1747641041892,-560.25720177,0.00013698,2]
[361613718,1747641041901,-400.0,0.00013698,2]
[361613719,1747641041910,-420.0,0.00013698,2]
[361613720,1747641041920,-420.0,0.00013698,2]
[361613721,1747641041929,-420.0,0.00013698,2]
[361613722,1747641041938,-420.0,0.00013698,2]
[361613723,1747641041947,-420.0,0.00013698,2]
[361613724,1747641041957,-420.0,0.00013698,2]
[361613725,1747641041966,-481.48,0.00013698,2]
[361613726,1747641041975,-420.0,0.00013698,2]
[361613727,1747641041984,-401.2464519,0.00013698,2]
[361613728,1747641041993,-420.0,0.00013698,2]
[361613729,1747641042002,-942.48,0.00013698,2]
[361613730,1747641042012,-634.59,0.00013698,2]
[361613731,1747641042021,-420.0,0.00013698,2]
[361613732,1747641042031,-420.0,0.00013698,2]
[361613733,1747641042040,-1174.18,0.00013698,2]
[361613734,1747641042050,-639.6,0.00013698,2]
[361613735,1747641042059,-420.0,0.00013698,2]
[361613736,1747641042068,-400.0,0.00013698,2]
[361613737,1747641042077,-420.0,0.00013698,2]
[361613738,1747641042087,-420.0,0.00013698,2]
[361613739,1747641042096,-405.01489068,0.00013698,2]
[361613740,1747641042105,-855.6,0.00013698,2]
[361613741,1747641042115,-217.3196055,0.00013698,2]
[361613742,1747641042124,-452.26,0.00013698,2]
[361613743,1747641042134,-420.0,0.00013698,2]
[361613744,1747641042146,-420.0,0.00013698,2]
[361613745,1747641042161,-420.0,0.00013698,2]
[361613746,1747641042170,-612.91,0.00013698,2]
[361613747,1747641042180,-420.0,0.00013698,2]
[361613748,1747641042189,-420.0,0.00013698,2]
[361613749,1747641042198,-457.46,0.00013698,2]
[361613750,1747641042208,-420.0,0.00013698,2]
[361613751,1747641042217,-420.0,0.00013698,2]
[361613752,1747641042226,-420.0,0.00013698,2]
[361613753,1747641042237,-420.0,0.00013698,2]
[361613754,1747641042246,-420.0,0.00013698,2]
[361613755,1747641042255,-387.1666385,0.00013698,2]
[361613756,1747641042265,-420.0,0.00013698,2]
[361613757,1747641042275,-400.56212363,0.00013698,2]
[361613769,1747641042492,-420.0,0.00013698,2]
[361613770,1747641042502,-500.0,0.00013698,2]
[361613771,1747641042512,-420.0,0.00013698,2]
[361613772,1747641042521,-420.0,0.00013698,2]
[361613773,1747641042531,-501.07560789,0.00013698,2]
[361613774,1747641042542,-420.0,0.00013698,2]
[361613775,1747641042552,-420.0,0.00013698,2]
[361613776,1747641042561,-420.0,0.00013698,2]
[361613777,1747641042572,-630.02,0.00013698,2]
[361613778,1747641042583,-854.0,0.00013698,2]
[361613779,1747641042839,-420.0,0.00013698,2]
[361613780,1747641042849,-420.0,0.00013698,2]
[361613781,1747641042859,-380.8253408,0.00013698,2]
[361613782,1747641042868,-420.0,0.00013698,2]
[361613783,1747641042881,-420.0,0.00013698,2]
[361613784,1747641042891,-420.0,0.00013698,2]
[361613785,1747641042900,-500.72672628,0.00013698,2]
[361613786,1747641042910,-420.0,0.00013698,2]
[361613787,1747641042919,-420.0,0.00013698,2]
[361613788,1747641042929,-360.0,0.00013698,2]
[361613789,1747641042938,-366.88096896,0.00013698,2]
[361613790,1747641042947,-400.81825675,0.00013698,2]
[361613791,1747641042957,-420.0,0.00013698,2]
[361613792,1747641042966,-466.19,0.00013698,2]
[361613793,1747641042975,-420.0,0.00013698,2]
[361613794,1747641042985,-1123.78,0.00013698,2]
[361613795,1747641042994,-420.0,0.00013698,2]
[361613796,1747641043003,-400.82249255,0.00013698,2]
[361613797,1747641043013,-501.5,0.00013698,2]
[361613798,1747641043023,-560.06,0.00013698,2]
[361613799,1747641043034,-420.0,0.00013698,2]
[361613800,1747641043043,-420.0,0.00013698,2]
[361613801,1747641043052,-502.61,0.00013698,2]
[361613802,1747641043062,-400.20646479,0.00013698,2]
[361613803,1747641043073,-422.37,0.00013698,2]
[361613804,1747641043082,-420.0,0.00013698,2]
[361613805,1747641043091,-400.0,0.00013698,2]
[361613806,1747641043100,-825.46,0.00013698,2]
[361613807,1747641043110,-1481.67,0.00013698,2]
[361613808,1747641043122,-420.0,0.00013698,2]
[361613809,1747641043131,-1053.25,0.00013698,2]
[361613810,1747641043141,-2129.05,0.00013698,2]
[361613811,1747641043151,-380.0,0.00013698,2]
[361613812,1747641043172,-1072.91,0.00013698,2]
[361613813,1747641043182,-420.0,0.00013698,2]
[361613814,1747641043192,-406.72939467,0.00013698,2]
[361613815,1747641043201,-815.73,0.00013698,2]
[361613816,1747641043211,-420.0,0.00013698,2]
[361613817,1747641043220,-420.0,0.00013698,2]
[361613818,1747641043230,-420.0,0.00013698,2]
[361613819,1747641043240,-400.316295,0.00013698,2]
[361613820,1747641043250,-626.23,0.00013698,2]
[361613821,1747641043260,-420.0,0.00013698,2]
[361613822,1747641043269,-420.0,0.00013698,2]
[361613823,1747641043279,-420.0,0.00013698,2]
[361613824,1747641043289,-1342.61,0.00013698,2]
[361613825,1747641043299,-505.06,0.00013698,2]
[361613826,1747641043309,-509.57,0.00013698,2]
[361613827,1747641043318,-192627.72,0.00013698,2]
[361613828,1747641043328,-629.74,0.00013698,2]
[361613829,1747641043337,-202.38443869,0.00013698,2]
[361613830,1747641043347,-420.0,0.00013698,2]
[361613831,1747641043356,-735.22,0.00013698,2]
[361613832,1747641043366,-1475.96,0.00013698,2]
[361613833,1747641043376,-1134.23,0.00013698,2]
[361613834,1747641043385,-360.0,0.00013698,2]
[361613835,1747641043395,-429.35448125,0.00013698,2]
[361613836,1747641043404,-420.0,0.00013698,2]
[361613837,1747641043414,-384.3193465,0.00013698,2]
[361613838,1747641043423,-420.0,0.00013698,2]
[361613839,1747641043433,-420.0,0.00013698,2]
[361613840,1747641043442,-762.68,0.00013698,2]
[361613841,1747641043452,-360.0,0.00013698,2]
[361613842,1747641043462,-370.94352978,0.00013698,2]
[361613843,1747641043471,-420.0,0.00013698,2]
[361613844,1747641043482,-879.12,0.00013698,2]
[361613845,1747641043491,-757.17,0.00013698,2]
[361613846,1747641043501,-9031.63,0.00013698,2]
[361613847,1747641043511,-420.0,0.00013698,2]
[361613848,1747641043520,-706.36,0.00013698,2]
[361613849,1747641043531,-470.6,0.00013698,2]
[361613850,1747641043542,-420.0,0.00013698,2]
[361613851,1747641043553,-420.0,0.00013698,2]
[361613852,1747641043562,-420.0,0.00013698,2]
[361613853,1747641043572,-484.95,0.00013698,2]
[361613854,1747641043583,-8084.02,0.00013698,2]
[361613855,1747641043592,-420.0,0.00013698,2]
[361613856,1747641043602,-472.5876641,0.00013698,2]
[361613857,1747641043611,-420.0,0.00013698,2]
[361613858,1747641043623,-420.0,0.00013698,2]
[361613859,1747641043633,-420.0,0.00013698,2]
[361613860,1747641043643,-420.0,0.00013698,2]
[361613861,1747641043652,-420.0,0.00013698,2]
[361613862,1747641043662,-641.89,0.00013698,2]
[361613863,1747641043672,-574.95,0.00013698,2]
[361613864,1747641043681,-761.9,0.00013698,2]
[361613865,1747641043691,-380.0,0.00013698,2]
[361613866,1747641043702,-10170.34,0.00013698,2]
[361613867,1747641043712,-651.25,0.00013698,2]
[361613868,1747641043723,-530.54,0.00013698,2]
[361613869,1747641043733,-250.0,0.00013698,2]
[361613870,1747641043743,-1078.38,0.00013698,2]
[361613871,1747641043752,-420.0,0.00013698,2]
[361613872,1747641043763,-1000.9,0.00013698,2]
[361613873,1747641043772,-489.99445656,0.00013698,2]
[361613874,1747641043784,-420.0,0.00013698,2]